fUSD/lending_fUSD_20250306
["ID","MTS","AMOUNT","RATE_DAILY","PERIOD"]
[355536641,1741242638012,-567.05,0.00011488,2]
[355536642,1741242638022,-500.0,0.00011488,2]
[355536643,1741242638034,-1106.66,0.00011488,2]
[355536644,1741242638043,-500.0,0.00011488,2]
[355536645,1741242638053,-457.67713971,0.00011488,2]
[355536646,1741242638063,-2475.35,0.00011488,2]
[355536647,1741242638073,-500.0,0.00011488,2]
[355536648,1741242638082,-500.0,0.00011488,2]
[355536649,1741242638092,-500.0,0.00011488,2]
[355536650,1741242638102,-500.0,0.00011488,2]
[355536651,1741242638112,-1700.37,0.00011488,2]
[355536652,1741242638122,-500.55437889,0.00011488,2]
[355536653,1741242638132,-627.38,0.00011488,2]
[355536654,1741242638142,-500.65062442,0.00011488,2]
[355536655,1741242638153,-500.0,0.00011488,2]
[355536656,1741242638167,-553.35166081,0.00011488,2]
[355536657,1741242638176,-500.0,0.00011488,2]
[355536658,1741242638186,-695.23,0.00011488,2]
[355536659,1741242638197,-503.93525771,0.00011488,2]
[355536660,1741242638207,-500.68833577,0.00011488,2]
[355536661,1741242638216,-4321.77,0.00011488,2]
[355536662,1741242638227,-513.74213284,0.00011488,2]
[355536663,1741242638238,-561.2,0.00011488,2]
[355536664,1741242638248,-500.0,0.00011488,2]
[355536666,1741242638258,-500.0,0.00011488,2]
[355536668,1741242638269,-500.0,0.00011488,2]
[355536670,1741242638280,-500.0,0.00011488,2]
[355536671,1741242638290,-560.65,0.00011488,2]
[355536672,1741242638299,-1202.02,0.00011488,2]
[355536673,1741242638309,-500.0,0.00011488,2]
[355536674,1741242638318,-1488.64,0.00011488,2]
[355536675,1741242638328,-500.0,0.00011488,2]
[355536676,1741242638338,-500.0,0.00011488,2]
[355536677,1741242638347,-943.22,0.00011488,2]
[355536678,1741242638357,-187.59573286,0.00011489,2]
[355536680,1741242638367,-500.0,0.00011489,2]
[355536683,1741242638377,-500.0,0.00011489,2]
[355536685,1741242638387,-500.0,0.00011489,2]
[355536687,1741242638396,-546.37426023,0.00011489,2]
[355536689,1741242638406,-500.0,0.00011489,2]
[355536691,1741242638416,-500.0,0.00011489,2]
[355536693,1741242638425,-500.0,0.00011489,2]
[355536696,1741242638435,-500.0,0.00011489,2]
[355536699,1741242638445,-500.0,0.00011489,2]
[355536701,1741242638454,-500.0,0.00011489,2]
[355536704,1741242638464,-500.0,0.00011489,2]
[355536706,1741242638474,-529.40768617,0.00011489,2]
[355536709,1741242638483,-500.0,0.00011489,2]
[355536712,1741242638493,-500.0,0.00011489,2]
[355536715,1741242638503,-500.0,0.00011489,2]
[355536718,1741242638513,-500.0,0.00011489,2]
[355536721,1741242638522,-500.0,0.00011489,2]
[355536723,1741242638532,-500.0,0.00011489,2]
[355536725,1741242638542,-251.75019516,0.00011489,2]
[355536727,1741242638551,-420.7,0.00011489,2]
[355536729,1741242638560,-500.0,0.00011489,2]
[355536731,1741242638570,-500.0,0.00011489,2]
[355536733,1741242638580,-220.09,0.00011489,2]
[355536735,1741242638589,-500.0,0.00011489,2]
[355536737,1741242638599,-348.41,0.00011489,2]
[355536739,1741242638608,-500.0,0.00011489,2]
[355536741,1741242638618,-716.33,0.00011489,2]
[355536743,1741242638627,-500.0,0.00011489,2]
[355536745,1741242638636,-500.0,0.00011489,2]
[355536747,1741242638645,-500.0,0.00011489,2]
[355536749,1741242638655,-500.0,0.00011489,2]
[355536751,1741242638664,-500.0,0.00011489,2]
[355536753,1741242638674,-500.0,0.00011489,2]
[355536755,1741242638683,-500.0,0.00011489,2]
[355536757,1741242638692,-500.0,0.00011489,2]
[355536759,1741242638702,-689.38,0.00011489,2]
[355536761,1741242638711,-500.0,0.00011489,2]
[355536763,1741242638720,-708.94,0.00011489,2]
[355536765,1741242638729,-500.0,0.00011489,2]
[355536766,1741242638738,-500.0,0.00011489,2]
[355536768,1741242638748,-500.0,0.00011489,2]
[355536770,1741242638757,-500.0,0.00011489,2]
[355536772,1741242638766,-760.24,0.00011489,2]
[355536774,1741242638776,-500.0,0.00011489,2]
[355536776,1741242638786,-500.0,0.00011489,2]
[355536778,1741242638795,-625.92,0.00011489,2]
[355536780,1741242638805,-500.0,0.00011489,2]
[355536782,1741242638815,-166.20849276,0.0001149,2]
[355536784,1741242638824,-234.66125431,0.00011494,2]
[355536786,1741242638834,-500.0,0.00011494,2]
[355536788,1741242638844,-500.0,0.00011494,2]
[355536791,1741242638855,-500.0,0.00011494,2]
[355536792,1741242638864,-500.0,0.00011494,2]
[355536794,1741242638874,-431.40820226,0.00011494,2]
[355536796,1741242638885,-500.0,0.00011494,2]
[355536799,1741242638896,-500.0,0.00011494,2]
[355536800,1741242638906,-33617.34161411,0.00011495,2]
[355536803,1741242638916,-63004.51972754,0.00011495,2]
[355536804,1741242638926,-504.67088703,0.00011497,2]
[355536806,1741242638936,-259.70631361,0.00011497,2]
[355536808,1741242638946,-500.0,0.00011497,2]
[355536810,1741242638956,-500.0,0.00011497,2]
[355536812,1741242638966,-500.0,0.00011497,2]
[355536813,1741242638976,-500.0,0.00011497,2]
[355536814,1741242638986,-503.14156215,0.00011497,2]
[355536815,1741242638995,-500.0,0.00011497,2]
[355536816,1741242639005,-500.0,0.00011497,2]
[355536817,1741242639014,-500.0,0.00011497,2]
[355536818,1741242639023,-500.0,0.00011497,2]
[355536819,1741242639035,-500.0,0.00011497,2]
[355536820,1741242639044,-500.0,0.00011497,2]
[355536821,1741242639054,-354.88905908,0.00011497,2]
[355536822,1741242639128,-500.0,0.00011497,2]
[355536823,1741242639137,-500.0,0.00011497,2]
[355536824,1741242639146,-500.0,0.00011497,2]
[355536825,1741242639158,-500.0,0.00011497,2]
[355536826,1741242639168,-500.87302475,0.00011497,2]
[355536827,1741242639177,-500.0,0.00011497,2]
[355536828,1741242639186,-500.0,0.00011497,2]
[355536829,1741242639195,-500.0,0.00011497,2]
[355536830,1741242639205,-500.0,0.00011497,2]
[355536831,1741242639213,-500.0,0.00011497,2]
[355536832,1741242639224,-500.0,0.00011497,2]
[355536833,1741242639236,-500.0,0.00011497,2]
[355536834,1741242639246,-500.0,0.00011497,2]
[355536835,1741242639256,-500.0,0.00011497,2]
[355536836,1741242639266,-500.0,0.00011497,2]
[355536837,1741242639275,-500.0,0.00011497,2]
[355536838,1741242639286,-500.0,0.00011497,2]
[355536839,1741242639296,-500.0,0.00011497,2]
[355536840,1741242639305,-500.0,0.00011497,2]
[355536841,1741242639315,-500.0,0.00011497,2]
[355536842,1741242639325,-500.0,0.00011497,2]
[355536843,1741242639334,-500.0,0.00011497,2]
[355536844,1741242639344,-500.0,0.00011497,2]
[355536845,1741242639353,-500.0,0.00011497,2]
[355536846,1741242639363,-500.0,0.00011497,2]
[355536847,1741242639372,-500.0,0.00011497,2]
[355536848,1741242639382,-500.0,0.00011497,2]
[355536849,1741242639391,-501.04168582,0.00011497,2]
[355536850,1741242639400,-500.0,0.00011497,2]
[355536851,1741242639409,-500.0,0.00011497,2]
[355536852,1741242639419,-500.0,0.00011497,2]
[355536853,1741242639428,-500.0,0.00011497,2]
[355536854,1741242639438,-500.0,0.00011497,2]
[355536855,1741242639447,-500.0,0.00011497,2]
[355536856,1741242639456,-500.0,0.00011497,2]
[355536857,1741242639466,-500.0,0.00011497,2]
[355536858,1741242639475,-501.2814337,0.00011497,2]
[355536859,1741242639484,-500.0,0.00011497,2]
[355536860,1741242639494,-500.0,0.00011497,2]
[355536861,1741242639503,-500.0,0.00011497,2]
[355536862,1741242639513,-503.9304206,0.00011497,2]
[355536863,1741242639522,-500.0,0.00011497,2]
[355536864,1741242639532,-500.25138276,0.00011497,2]
[355536865,1741242639541,-500.0,0.00011497,2]
[355536866,1741242639551,-500.0,0.00011497,2]
[355536867,1741242639560,-503.29007645,0.00011497,2]
[355536868,1741242639569,-500.0,0.00011497,2]
[355536869,1741242639579,-500.0,0.00011497,2]
[355536870,1741242639587,-503.86110648,0.00011497,2]
[355536871,1741242639597,-500.0,0.00011497,2]
[355536872,1741242639606,-626.01819283,0.00011497,2]
[355536873,1741242639615,-500.52730994,0.00011497,2]
[355536874,1741242639624,-500.59561114,0.00011497,2]
[355536875,1741242639633,-500.0,0.00011497,2]
[355536876,1741242639642,-500.0,0.00011497,2]
[355536877,1741242639653,-500.0,0.00011497,2]
[355536878,1741242639662,-500.0,0.00011497,2]
[355536879,1741242639672,-500.0,0.00011497,2]
[355536880,1741242639682,-500.0,0.00011497,2]
[355536881,1741242639691,-503.32646996,0.00011497,2]
[355536882,1741242639700,-505.62473861,0.00011497,2]
[355536883,1741242639710,-500.0,0.00011497,2]
[355536884,1741242639720,-500.0,0.00011497,2]
[355536885,1741242639729,-501.25566938,0.00011497,2]
[355536886,1741242639738,-511.0426967,0.00011497,2]
[355536887,1741242639748,-500.0,0.00011497,2]
[355536888,1741242639757,-345.28388895,0.00011497,2]
[355536889,1741242639766,-500.0,0.00011497,2]
[355536890,1741242639775,-500.0,0.00011497,2]
[355536891,1741242639786,-500.0,0.00011497,2]
[355536892,1741242639795,-503.44606156,0.00011497,2]
[355536893,1741242639804,-503.1621725,0.00011497,2]
[355536894,1741242639813,-500.0,0.00011497,2]
[355536895,1741242639823,-502.9570028,0.00011497,2]
[355536896,1741242639832,-500.0,0.00011497,2]
[355536897,1741242639841,-500.0,0.00011497,2]
[355536898,1741242639850,-500.0,0.00011497,2]
[355536899,1741242639860,-503.00634169,0.00011497,2]
[355536900,1741242639869,-501.74274712,0.00011497,2]
[355536901,1741242639879,-500.0,0.00011497,2]
[355536902,1741242639888,-500.0,0.00011497,2]
[355536903,1741242639898,-500.0,0.00011497,2]
[355536904,1741242639907,-500.0,0.00011497,2]
[355536905,1741242639916,-500.0,0.00011497,2]
[355536906,1741242639926,-500.0,0.00011497,2]
[355536907,1741242639935,-500.0,0.00011497,2]
[355536908,1741242639944,-500.0,0.00011497,2]
[355536909,1741242639954,-500.0,0.00011497,2]
[355536910,1741242639964,-503.27892289,0.00011497,2]
[355536913,1741242639974,-513.9732675,0.00011497,2]
[355536915,1741242639983,-500.0,0.00011497,2]
[355536917,1741242639992,-500.0,0.00011497,2]
[355536919,1741242640002,-504.87611114,0.00011497,2]
[355536921,1741242640012,-521.7049488,0.00011497,2]
[355536924,1741242640021,-500.0,0.00011497,2]
[355536927,1741242640031,-503.23788128,0.00011497,2]
[355536930,1741242640041,-514.81198949,0.00011497,2]
[355536933,1741242640051,-506.48857489,0.00011497,2]
[355536936,1741242640060,-500.0,0.00011497,2]
[355536939,1741242640070,-500.0,0.00011497,2]
[355536942,1741242640080,-500.0,0.00011497,2]
[355536944,1741242640089,-504.63178582,0.00011497,2]
[355536945,1741242640099,-500.0,0.00011497,2]
[355536946,1741242640109,-513.43660263,0.00011497,2]
[355536947,1741242640119,-500.0,0.00011497,2]
[355536948,1741242640128,-500.0,0.00011497,2]
[355536949,1741242640138,-211.56859174,0.00011497,2]
[355536950,1741242640148,-500.0,0.00011497,2]
[355536951,1741242640160,-486.29281816,0.00011497,2]
[355536952,1741242640170,-500.0,0.00011497,2]
[355536953,1741242640180,-507.33769087,0.00011497,2]
[355536954,1741242640189,-500.0,0.00011497,2]
[355536955,1741242640200,-500.0,0.00011497,2]
[355536956,1741242640210,-500.0,0.00011497,2]
[355536957,1741242640220,-500.0,0.00011497,2]
[355536958,1741242640230,-500.0,0.00011497,2]
[355536959,1741242640240,-500.0,0.00011497,2]
[355536960,1741242640250,-500.0,0.00011497,2]
[355536961,1741242640260,-504.29392721,0.00011497,2]
[355536962,1741242640270,-500.0,0.00011497,2]
[355536963,1741242640280,-500.0,0.00011497,2]
[355536964,1741242640290,-500.0,0.00011497,2]
[355536965,1741242640299,-500.0,0.00011497,2]
[355536966,1741242640309,-500.0,0.00011497,2]
[355536967,1741242640319,-500.0,0.00011497,2]
[355536968,1741242640328,-500.0,0.00011497,2]
[355536969,1741242640370,-500.0,0.00011497,2]
[355536970,1741242640380,-500.0,0.00011497,2]
[355536971,1741242640390,-500.0,0.00011497,2]
[355536972,1741242640399,-500.0,0.00011497,2]
[355536973,1741242640409,-500.0,0.00011497,2]
[355536974,1741242640419,-500.0,0.00011497,2]
[355536975,1741242640428,-500.0,0.00011497,2]
[355536976,1741242640438,-500.0,0.00011497,2]
[355536977,1741242640447,-500.0,0.00011497,2]
[355536978,1741242640457,-500.0,0.00011497,2]
[355536979,1741242640466,-500.0,0.00011497,2]
[355536980,1741242640476,-587.52,0.00011497,2]
[355536981,1741242640484,-500.0,0.00011497,2]
[355536982,1741242640493,-500.0,0.00011497,2]
[355536983,1741242640502,-500.0,0.00011497,2]
[355536984,1741242640511,-500.0,0.00011497,2]
[355536985,1741242640520,-500.0,0.00011497,2]
[355536986,1741242640529,-500.0,0.00011497,2]
[355536987,1741242640538,-508.69471197,0.00011497,2]
[355536988,1741242640548,-506.72569723,0.00011497,2]
[355536989,1741242640558,-500.0,0.00011497,2]
[355536990,1741242640568,-500.0,0.00011497,2]
[355536991,1741242640578,-500.0,0.00011497,2]
[355536992,1741242640588,-500.0,0.00011497,2]
[355536993,1741242640597,-503.61585213,0.00011497,2]
[355536994,1741242640607,-640.33431526,0.00011497,2]
[355536995,1741242640616,-500.0,0.00011497,2]
[355536996,1741242640626,-500.0,0.00011497,2]
[355536997,1741242640636,-500.0,0.00011497,2]
[355536998,1741242640645,-500.0,0.00011497,2]
[355536999,1741242640655,-500.0,0.00011497,2]
[355537000,1741242640664,-500.0,0.00011497,2]
[355537002,1741242640673,-500.0,0.00011497,2]
[355537003,1741242640683,-500.0,0.00011497,2]
[355537004,1741242640692,-500.0,0.00011497,2]
[355537006,1741242640701,-500.0,0.00011497,2]
[355537009,1741242640711,-500.0,0.00011497,2]
[355537011,1741242640721,-500.0,0.00011497,2]
[355537012,1741242640730,-500.0,0.00011497,2]
[355537014,1741242640740,-500.0,0.00011497,2]
[355537016,1741242640750,-521.80768828,0.00011497,2]
[355537018,1741242640759,-500.0,0.00011497,2]
[355537020,1741242640769,-521.82515351,0.00011497,2]
[355537023,1741242640778,-500.0,0.00011497,2]
[355537025,1741242640788,-500.0,0.00011497,2]
[355537028,1741242640798,-258.79607334,0.00011497,2]
[355537031,1741242640807,-500.0,0.00011497,2]
[355537032,1741242640816,-500.0,0.00011497,2]
[355537033,1741242640826,-500.0,0.00011497,2]
[355537034,1741242640836,-520.41370145,0.00011497,2]
[355537035,1741242640846,-500.0,0.00011497,2]
[355537036,1741242640855,-500.0,0.00011497,2]
[355537037,1741242640864,-500.0,0.00011497,2]
[355537038,1741242640874,-502.02594642,0.00011497,2]
[355537039,1741242640883,-500.0,0.00011497,2]
[355537040,1741242640893,-500.0,0.00011497,2]
[355537041,1741242640902,-500.0,0.00011497,2]
[355537042,1741242640911,-500.0,0.00011497,2]
[355537043,1741242640921,-500.0,0.00011497,2]
[355537044,1741242640930,-500.0,0.00011497,2]
[355537045,1741242640939,-500.0,0.00011497,2]
[355537046,1741242640949,-500.0,0.00011497,2]
[355537047,1741242640958,-500.0,0.00011497,2]
[355537048,1741242640967,-500.0,0.00011497,2]
[355537049,1741242640977,-500.0,0.00011497,2]
[355537050,1741242640986,-500.0,0.00011497,2]
[355537051,1741242640995,-500.0,0.00011497,2]
[355537052,1741242641005,-500.0,0.00011497,2]
[355537053,1741242641014,-500.0,0.00011497,2]
[355537054,1741242641023,-500.0,0.00011497,2]
[355537055,1741242641033,-500.0,0.00011497,2]
[355537056,1741242641043,-500.0,0.00011497,2]
[355537057,1741242641052,-500.0,0.00011497,2]
[355537058,1741242641061,-500.0,0.00011497,2]
[355537059,1741242641071,-552.77721901,0.00011497,2]
[355537060,1741242641080,-500.0,0.00011497,2]
[355537061,1741242641090,-500.0,0.00011497,2]
[355537062,1741242641100,-500.0,0.00011497,2]
[355537063,1741242641109,-503.18634511,0.00011497,2]
[355537064,1741242641119,-500.0,0.00011497,2]
[355537065,1741242641128,-500.0,0.00011497,2]
[355537066,1741242641138,-500.0,0.00011497,2]
[355537067,1741242641147,-502.87927712,0.00011497,2]
[355537068,1741242641159,-500.0,0.00011497,2]
[355537069,1741242641168,-500.0,0.00011497,2]
[355537070,1741242641177,-500.0,0.00011497,2]
[355537071,1741242641186,-500.0,0.00011497,2]
[355537072,1741242641195,-500.0,0.00011497,2]
[355537073,1741242641206,-500.0,0.00011497,2]
[355537074,1741242641216,-500.0,0.00011497,2]
[355537075,1741242641225,-510.28709924,0.00011497,2]
[355537076,1741242641235,-500.0,0.00011497,2]
[355537077,1741242641247,-500.0,0.00011497,2]
[355537078,1741242641257,-500.0,0.00011497,2]
[355537079,1741242641267,-500.0,0.00011497,2]
[355537080,1741242641276,-500.0,0.00011497,2]
[355537081,1741242641287,-500.0,0.00011497,2]
[355537082,1741242641298,-511.85816725,0.00011497,2]
[355537083,1741242641308,-500.0,0.00011497,2]
[355537084,1741242641317,-500.0,0.00011497,2]
[355537085,1741242641326,-295.49621497,0.00011497,2]
[355537086,1741242641336,-500.0,0.00011497,2]
[355537087,1741242641347,-571.2,0.00011497,2]
[355537088,1741242641370,-501.98899067,0.00011497,2]
[355537089,1741242641379,-500.0,0.00011497,2]
[355537090,1741242641389,-500.0,0.00011497,2]
[355537091,1741242641398,-500.0,0.00011497,2]
[355537092,1741242641408,-500.0,0.00011497,2]
[355537093,1741242641417,-500.0,0.00011497,2]
[355537094,1741242641427,-521.42,0.00011497,2]
[355537095,1741242641436,-509.05137143,0.00011497,2]
[355537096,1741242641446,-521.94,0.00011497,2]
[355537097,1741242641456,-500.0,0.00011497,2]
[355537098,1741242641466,-501.4540269,0.00011497,2]
[355537099,1741242641476,-500.0,0.00011497,2]
[355537100,1741242641486,-500.0,0.00011497,2]
[355537101,1741242641496,-500.0,0.00011497,2]
[355537102,1741242641506,-500.0,0.00011497,2]
[355537103,1741242641517,-500.0,0.00011497,2]
[355537104,1741242641526,-500.0,0.00011497,2]
[355537105,1741242641538,-500.0,0.00011497,2]
[355537106,1741242641548,-500.0,0.00011497,2]
[355537107,1741242641558,-558.5,0.00011497,2]
[355537108,1741242641568,-496.81771495,0.00011497,2]
[355537109,1741242641578,-222.8057512,0.00011497,2]
[355537110,1741242641588,-500.0,0.00011497,2]
[355537111,1741242641598,-500.0,0.00011497,2]
[355537112,1741242641609,-516.37523928,0.00011497,2]
[355537113,1741242641619,-500.0,0.00011497,2]
[355537114,1741242641629,-502.91550934,0.00011497,2]
[355537115,1741242641640,-500.0,0.00011497,2]
[355537116,1741242641650,-500.0,0.00011497,2]
[355537117,1741242641660,-500.0,0.00011497,2]
[355537118,1741242641670,-500.0,0.00011497,2]
[355537119,1741242641681,-500.0,0.00011497,2]
[355537120,1741242641691,-500.0,0.00011497,2]
[355537121,1741242641700,-500.0,0.00011497,2]
[355537122,1741242641710,-500.0,0.00011497,2]
[355537123,1741242641721,-509.24324944,0.00011497,2]
[355537124,1741242641730,-500.0,0.00011497,2]
[355537125,1741242641740,-521.57,0.00011497,2]
[355537126,1741242641750,-514.55,0.00011497,2]
[355537127,1741242641760,-500.0,0.00011497,2]
[355537128,1741242641770,-500.0,0.00011497,2]
[355537129,1741242641782,-500.0,0.00011497,2]
[355537130,1741242641792,-500.0,0.00011497,2]
[355537131,1741242641801,-500.0,0.00011497,2]
[355537132,1741242641811,-500.0,0.00011497,2]
[355537133,1741242641822,-500.0,0.00011497,2]
[355537134,1741242641832,-500.0,0.00011497,2]
[355537135,1741242641842,-314.62578032,0.00011497,2]
[355537136,1741242641853,-500.0,0.00011497,2]
[355537137,1741242641863,-500.0,0.00011497,2]
[355537138,1741242641873,-500.0,0.00011497,2]
[355537139,1741242641883,-503.50970243,0.00011497,2]
[355537140,1741242641893,-504.34481092,0.00011497,2]
[355537141,1741242641903,-509.18222532,0.00011497,2]
[355537142,1741242641913,-500.0,0.00011497,2]
[355537143,1741242641923,-500.0,0.00011497,2]
[355537144,1741242641932,-501.76672398,0.00011497,2]
[355537145,1741242641942,-500.0,0.00011497,2]
[355537146,1741242641951,-500.0,0.00011497,2]
[355537147,1741242641961,-500.0,0.00011497,2]
[355537148,1741242641971,-500.0,0.00011497,2]
[355537149,1741242641980,-500.0,0.00011497,2]
[355537150,1741242641991,-504.56447273,0.00011497,2]
[355537151,1741242642001,-500.0,0.00011497,2]
[355537152,1741242642010,-500.0,0.00011497,2]
[355537153,1741242642020,-506.03526493,0.00011497,2]
[355537154,1741242642032,-501.31095665,0.00011497,2]
[355537155,1741242642041,-201.35487565,0.00011497,2]
[355537156,1741242642051,-283.46,0.00011497,2]
[355537157,1741242642061,-156.78,0.00011497,2]
[355537158,1741242642071,-500.0,0.00011497,2]
[355537159,1741242642079,-500.0,0.00011497,2]
[355537160,1741242642089,-500.0,0.00011497,2]
[355537161,1741242642099,-410.32361698,0.00011497,2]
[355537162,1741242642109,-654.3,0.00011497,2]
[355537163,1741242642119,-500.0,0.00011497,2]
[355537164,1741242642129,-500.0,0.00011497,2]
[355537165,1741242642139,-1109.97,0.00011497,2]
[355537166,1741242642149,-500.0,0.00011497,2]
[355537167,1741242642162,-500.0,0.00011497,2]
[355537168,1741242642171,-208.9,0.00011497,2]
[355537169,1741242642180,-500.0,0.00011497,2]
[355537170,1741242642190,-985.96,0.00011497,2]
[355537171,1741242642200,-500.0,0.00011497,2]
[355537172,1741242642209,-825.39,0.00011497,2]
[355537173,1741242642219,-399.66,0.00011497,2]
[355537174,1741242642228,-1144.29,0.00011497,2]
[355537175,1741242642239,-374.51,0.00011497,2]
[355537176,1741242642250,-988.73,0.00011497,2]
[355537177,1741242642259,-1128.71,0.00011497,2]
[355537178,1741242642268,-1570.9,0.00011497,2]
[355537179,1741242642278,-1243.76,0.00011497,2]
[355537180,1741242642288,-500.0,0.00011497,2]
[355537181,1741242642298,-1768.14,0.00011497,2]
[355537182,1741242642308,-11269.69,0.00011497,2]
[355537183,1741242642318,-500.0,0.00011497,2]
[355537184,1741242642328,-391.73,0.00011497,2]
[355537185,1741242642338,-438.13,0.00011497,2]
[355537186,1741242642348,-500.0,0.00011497,2]
[355537187,1741242642359,-500.0,0.00011497,2]
[355537188,1741242642370,-500.0,0.00011497,2]
[355537189,1741242642379,-1114.37,0.00011497,2]
[355537190,1741242642389,-500.0,0.00011497,2]
[355537191,1741242642398,-500.0,0.00011497,2]
[355537192,1741242642408,-540.07,0.00011497,2]
[355537193,1741242642418,-1926.91,0.00011497,2]
[355537194,1741242642428,-500.0,0.00011497,2]
[355537195,1741242642437,-500.0,0.00011497,2]
[355537196,1741242642447,-13274.99,0.00011497,2]
[355537197,1741242642458,-500.0,0.00011497,2]
[355537198,1741242642469,-500.0,0.00011497,2]
[355537199,1741242642478,-500.0,0.00011497,2]
[355537200,1741242642489,-500.0,0.00011497,2]
[355537201,1741242642499,-500.0,0.00011497,2]
[355537202,1741242642509,-1776.34,0.00011497,2]
[355537203,1741242642519,-500.0,0.00011497,2]
[355537204,1741242642529,-500.0,0.00011497,2]
[355537205,1741242642540,-500.0,0.00011497,2]
[355537206,1741242642550,-500.0,0.00011497,2]
[355537207,1741242642559,-500.0,0.00011497,2]
[355537208,1741242642569,-500.0,0.00011497,2]
[355537209,1741242642579,-1194.0,0.00011497,2]
[355537210,1741242642588,-377.53008507,0.00011497,2]
[355537211,1741242642598,-500.0,0.00011497,2]
[355537212,1741242642608,-500.0,0.00011497,2]
[355537213,1741242642618,-2774.37,0.00011497,2]
[355537214,1741242642628,-500.0,0.00011497,2]
[355537215,1741242642639,-500.0,0.00011497,2]
[355537216,1741242642649,-500.0,0.00011497,2]
[355537217,1741242642659,-1000.0,0.00011497,2]
[355537218,1741242642669,-500.0,0.00011497,2]
[355537219,1741242642679,-2288.23,0.00011499,2]
[355537220,1741242642689,-500.0,0.00011499,2]
[355537221,1741242642699,-500.0,0.00011499,2]
[355537222,1741242642708,-500.0,0.00011499,2]
[355537223,1741242642719,-506.45686842,0.00011499,2]
[355537224,1741242642728,-500.0,0.00011499,2]
[355537225,1741242642738,-500.0,0.00011499,2]
[355537227,1741242642747,-500.0,0.00011499,2]
[355537229,1741242642757,-500.0,0.00011499,2]
[355537230,1741242642770,-500.0,0.00011499,2]
[355537231,1741242642787,-500.0,0.00011499,2]
[355537232,1741242642797,-500.0,0.00011499,2]
[355537233,1741242642807,-500.0,0.00011499,2]
[355537234,1741242642817,-500.0,0.00011499,2]
[355537235,1741242642827,-500.0,0.00011499,2]
[355537236,1741242642837,-500.0,0.00011499,2]
[355537238,1741242642847,-500.0,0.00011499,2]
[355537240,1741242642857,-500.0,0.00011499,2]
[355537242,1741242642867,-500.0,0.00011499,2]
[355537243,1741242642877,-500.0,0.00011499,2]
[355537245,1741242642887,-500.0,0.00011499,2]
[355537247,1741242642897,-500.0,0.00011499,2]
[355537248,1741242642906,-500.0,0.00011499,2]
[355537249,1741242642916,-500.0,0.00011499,2]
[355537250,1741242642926,-500.0,0.00011499,2]
[355537251,1741242642935,-500.0,0.00011499,2]
[355537252,1741242642945,-500.0,0.00011499,2]
[355537253,1741242642954,-500.0,0.00011499,2]
[355537254,1741242642965,-500.0,0.00011499,2]
[355537255,1741242642975,-165.0,0.00011499,2]
[355537256,1741242642986,-786.0,0.00011499,2]
[355537258,1741242642996,-2054.0,0.000115,2]
[355537260,1741242643006,-370223.85321995,0.000115,2]